fUST/lending_fUST_20260603
["ID","MTS","AMOUNT","RATE_DAILY","PERIOD"]
[423934772,1780498238000,-500.0,0.00018277,2]
[423934915,1780498241000,-620.73702623,0.00018278,2]
[423934917,1780498241000,-25244.08613528,0.00018278,2]
[423934922,1780498241000,-5296.7571945,0.00018278,2]
[423934919,1780498241000,-1289.44064783,0.00018278,2]
[423934943,1780498241000,-5528.74017111,0.00018278,2]
[423934944,1780498241000,-557.18095717,0.00018278,2]
[423934942,1780498241000,-2068.85952668,0.00018278,2]
[423935058,1780498244000,-40050.00000001,0.00018278,2]
[423935056,1780498244000,-1990.36528009,0.00018278,2]
[423935057,1780498244000,-382.74849313,0.00018278,2]
[423935073,1780498246000,-3845.01103239,0.00018278,2]
[423935075,1780498246000,-22329.96805908,0.00018278,2]
[423935076,1780498246000,-97107.2218318,0.00018278,2]
[423935077,1780498247000,-35749.99999999,0.00018278,2]
[423935088,1780498911000,-163.0,0.00013452,3]
[423935089,1780498946000,-5000.0,0.00016403,2]
[423935091,1780498963000,-538.69521796,0.00016569,2]
[423935092,1780498980000,-4461.30478204,0.00016569,2]
[423935156,1780499435000,-342.92158418,0.00016402,2]
[423935163,1780499435000,-411.12473751,0.00016402,2]
[423935154,1780499435000,-170.0,0.00013479,3]
[423935161,1780499435000,-783.87264066,0.00016402,2]
[423935152,1780499435000,-151.6,0.00012,2]
[423935911,1780499444000,-3462.08103765,0.00016402,2]
[423935915,1780499444000,-152.0,0.00017293,7]
[423935917,1780499444000,-152.0,0.00017298,7]
[423935913,1780499444000,-183.0,0.00017107,2]
[423935919,1780499444000,-214.2534004,0.00017598,2]
[423935921,1780499444000,-152.0,0.00017885,30]
[423935925,1780499444000,-250.2231309,0.00018,2]
[423935926,1780499444000,-250.00000003,0.00018,3]
[423935930,1780499444000,-991.0,0.00018077,2]
[423935923,1780499444000,-428.50680081,0.00017949,2]
[423935928,1780499444000,-152.0,0.00018055,30]
[423935932,1780499444000,-7912.93563021,0.00018078,2]
[423936241,1780499447000,-3845.01103239,0.00018078,2]
[423936228,1780499447000,-12441.0409451,0.00018078,2]
[423936831,1780500631000,-2108.08592362,0.00011761,2]
[423936832,1780500632000,-2891.91407638,0.00011761,2]
[423936833,1780500632000,-4546.93365795,0.0001188,2]
[423936930,1780500638000,-300.0,0.00016232,2]
[423936936,1780500638000,-300.0,0.00016232,2]
[423936938,1780500638000,-300.0,0.00016232,2]
[423936932,1780500638000,-300.0,0.00016232,2]
[423936934,1780500638000,-300.0,0.00016232,2]
[423936929,1780500638000,-168.50366936,0.00015539,2]
[423936915,1780500638000,-453.06634205,0.0001188,2]
[423936917,1780500638000,-151.6,0.00012,2]
[423936927,1780500638000,-417.0,0.00014982,2]
[423936923,1780500638000,-300.0,0.00014981,2]
[423936921,1780500638000,-300.0,0.00014981,2]
[423936947,1780500638000,-300.0,0.00016232,2]
[423936925,1780500638000,-300.0,0.00014981,2]
[423936951,1780500638000,-58.94878314,0.00016232,2]
[423936919,1780500638000,-1200.0,0.00014685,2]
[423936946,1780500638000,-300.0,0.00016232,2]
[423936940,1780500638000,-300.0,0.00016232,2]
[423936961,1780500638000,-600.0,0.00016556,2]
[423936962,1780500638000,-285.57941045,0.00016612,2]
[423936970,1780500638000,-8.54632166,0.00017298,2]
[423936968,1780500638000,-152.0,0.00017298,7]
[423936957,1780500638000,-300.0,0.00016232,2]
[423936959,1780500638000,-300.0,0.00016232,2]
[423936966,1780500638000,-152.0,0.00017298,7]
[423936955,1780500638000,-300.0,0.00016232,2]
[423936954,1780500638000,-241.05121686,0.00016232,2]
[423936944,1780500638000,-300.0,0.00016232,2]
[423936949,1780500638000,-300.0,0.00016232,2]
[423936942,1780500638000,-300.0,0.00016232,2]
[423936964,1780500638000,-152.0,0.00017293,7]
[423937198,1780500640000,-1305.36298906,0.00017684,2]
[423937204,1780500640000,-500.0,0.00017777,2]
[423937205,1780500640000,-500.0,0.00017777,2]
[423937197,1780500640000,-834.75797644,0.00017684,2]
[423937195,1780500640000,-181.38301631,0.000175,2]
[423937196,1780500640000,-181.38301629,0.000175,2]
[423937200,1780500640000,-500.0,0.00017777,2]
[423937201,1780500640000,-505.79549661,0.00017777,2]
[423937194,1780500640000,-250.37617314,0.00017298,2]
[423937203,1780500640000,-500.0,0.00017777,2]
[423937211,1780500640000,-97.769707,0.00017784,2]
[423937210,1780500640000,-2369.68105036,0.00017778,2]
[423937209,1780500640000,-8034.79915667,0.00017778,2]
[423937199,1780500640000,-500.0,0.00017777,2]
[423937207,1780500640000,-255.97873896,0.00017778,2]
[423937206,1780500640000,-500.0,0.00017777,2]
[423937202,1780500640000,-500.0,0.00017777,2]
[423937208,1780500640000,-808.03,0.00017778,2]
[423937573,1780500643000,-260.452,0.00017877,2]
[423937564,1780500643000,-402.230293,0.00017784,2]
[423937575,1780500643000,-1083.2,0.00017877,2]
[423937576,1780500643000,-33254.11770701,0.00017878,2]
[423937566,1780500643000,-500.0,0.00017784,2]
[423937569,1780500643000,-500.0,0.00017784,2]
[423937571,1780500643000,-500.0,0.00017784,2]
[423937567,1780500643000,-500.0,0.00017784,2]
[423937762,1780500646000,-152.0,0.00017295,7]
[423937763,1780500646000,-5467.87868874,0.00017878,2]
[423937764,1780500646000,-3845.01961491,0.00017878,2]
[423937765,1780500646000,-85015.15004128,0.00017878,2]
[423937804,1780501339000,3521.84,0.00023402,30]
[423937809,1780501424000,4999.0,0.00023288,120]
[423937810,1780501547000,3058.96514865,0.00023402,120]
[423937814,1780501821000,-340.72625896,0.0001188,2]
[423937815,1780501823000,-500.0,0.0001188,2]
[423937816,1780501824000,-500.0,0.0001188,2]
[423937817,1780501826000,-500.0,0.0001188,2]
[423937818,1780501828000,-500.0,0.0001188,2]
[423937819,1780501830000,-500.0,0.0001188,2]
[423937859,1780501832000,-151.6,0.00012,2]
[423937861,1780501832000,-5000.0,0.00015689,2]
[423937874,1780501832000,-500.0,0.00017582,2]
[423937863,1780501832000,-240.0,0.00016006,2]
[423937865,1780501832000,-170.04706115,0.00017,10]
[423937868,1780501832000,-208.362,0.00017233,2]
[423937857,1780501832000,-1082.33250771,0.0001188,2]
[423937872,1780501832000,-1872.60584483,0.00017485,2]
[423937880,1780501832000,-166.12960225,0.00017582,2]
[423937876,1780501832000,-500.0,0.00017582,2]
[423937887,1780501832000,-254.90335242,0.00017582,2]
[423937892,1780501832000,-76.46955065,0.00017582,2]
[423937888,1780501832000,-500.0,0.00017582,2]
[423937878,1780501832000,-500.0,0.00017582,2]
[423937891,1780501832000,-500.0,0.00017582,2]
[423937882,1780501832000,-177.17039775,0.00017582,2]
[423937884,1780501832000,-245.09664758,0.00017582,2]
[423937870,1780501832000,-152.0,0.00017295,7]
[423938161,1780501838000,-27545.72926019,0.00017678,2]
[423938147,1780501838000,-500.0,0.00017584,2]
[423938145,1780501838000,-500.0,0.00017584,2]
[423938159,1780501838000,-76962.2936908,0.00017678,2]
[423938156,1780501838000,-77488.28181943,0.00017678,2]
[423938116,1780501838000,-22.36636248,0.00017582,2]
[423938141,1780501838000,-500.0,0.00017582,2]
[423938139,1780501838000,-257.5352573,0.00017582,2]
[423938112,1780501838000,-500.0,0.00017582,2]
[423938163,1780501838000,-500.0,0.00017683,2]
[423938114,1780501838000,-500.0,0.00017582,2]
[423938143,1780501838000,-500.0,0.00017584,2]
[423938153,1780501838000,-1689.72065281,0.00017678,2]
[423938110,1780501838000,-363.22937606,0.00017582,2]
[423938151,1780501838000,-25192.44579967,0.00017678,2]
[423938165,1780501838000,-500.0,0.00017683,2]
[423938175,1780501838000,-625.86908226,0.00017683,2]
[423938173,1780501838000,-500.0,0.00017683,2]
[423938188,1780501838000,-500.0,0.00017683,2]
[423938179,1780501838000,-500.0,0.00017683,2]
[423938177,1780501838000,-500.38990564,0.00017683,2]
[423938186,1780501838000,-502.52640627,0.00017683,2]
[423938181,1780501838000,-500.0,0.00017683,2]
[423938183,1780501838000,-500.0,0.00017683,2]
[423938171,1780501838000,-500.0,0.00017683,2]
[423938169,1780501838000,-500.0,0.00017683,2]
[423938167,1780501838000,-500.0,0.00017683,2]
[423938149,1780501838000,-733.45,0.00017585,2]
[423938184,1780501838000,-500.0,0.00017683,2]
[423938262,1780501839000,-152.0,0.00017845,2]
[423938274,1780501839000,-500.0,0.00017856,2]
[423938272,1780501839000,-500.0,0.00017856,2]
[423938301,1780501839000,-500.0,0.00017958,2]
[423938253,1780501839000,-352.07707965,0.00017776,2]
[423938270,1780501839000,-500.0,0.00017856,2]
[423938249,1780501839000,-500.0,0.00017776,2]
[423938251,1780501839000,-500.0,0.00017776,2]
[423938257,1780501839000,-151.5,0.00017776,2]
[423938266,1780501839000,-500.0,0.00017856,2]
[423938276,1780501839000,-500.0,0.00017856,2]
[423938264,1780501839000,-258.81619761,0.00017856,2]
[423938259,1780501839000,-168.57022042,0.00017776,2]
[423938278,1780501839000,-500.0,0.00017856,2]
[423938290,1780501839000,-500.0,0.00017957,2]
[423938282,1780501839000,-500.0,0.00017858,2]
[423938284,1780501839000,-500.0,0.00017858,2]
[423938286,1780501839000,-500.0,0.00017957,2]
[423938288,1780501839000,-500.0,0.00017957,2]
[423938291,1780501839000,-401.75077032,0.00017957,2]
[423938293,1780501839000,-500.0,0.00017957,2]
[423938295,1780501839000,-500.0,0.00017958,2]
[423938296,1780501839000,-500.0,0.00017958,2]
[423938297,1780501839000,-500.0,0.00017958,2]
[423938298,1780501839000,-1038.07,0.00017958,2]
[423938300,1780501839000,-500.0,0.00017958,2]
[423938302,1780501839000,-626.14,0.00017958,2]
[423938261,1780501839000,-505.26279879,0.00017829,2]
[423938280,1780501839000,-500.0,0.00017858,2]
[423938255,1780501839000,-560.52730279,0.00017776,2]
[423938211,1780501839000,-500.0,0.00017684,2]
[423938245,1780501839000,-500.0,0.00017776,2]
[423938190,1780501839000,-500.0,0.00017683,2]
[423938192,1780501839000,-501.8581867,0.00017683,2]
[423938194,1780501839000,-500.0,0.00017683,2]
[423938198,1780501839000,-500.0,0.00017683,2]
[423938196,1780501839000,-500.0,0.00017683,2]
[423938200,1780501839000,-500.0,0.00017683,2]
[423938213,1780501839000,-500.0,0.00017684,2]
[423938208,1780501839000,-248.90150631,0.00017683,2]
[423938204,1780501839000,-501.88424725,0.00017683,2]
[423938202,1780501839000,-500.0,0.00017683,2]
[423938209,1780501839000,-500.0,0.00017684,2]
[423938206,1780501839000,-500.0,0.00017683,2]
[423938219,1780501839000,-500.0,0.00017684,2]
[423938247,1780501839000,-500.0,0.00017776,2]
[423938217,1780501839000,-500.0,0.00017684,2]
[423938215,1780501839000,-500.0,0.00017684,2]
[423938223,1780501839000,-500.0,0.00017684,2]
[423938233,1780501839000,-500.0,0.00017684,2]
[423938234,1780501839000,-500.0,0.00017684,2]
[423938225,1780501839000,-570.82540629,0.00017684,2]
[423938238,1780501839000,-453.68814157,0.00017684,2]
[423938231,1780501839000,-500.0,0.00017684,2]
[423938240,1780501839000,-550.21223533,0.00017684,2]
[423938229,1780501839000,-500.0,0.00017684,2]
[423938236,1780501839000,-500.0,0.00017684,2]
[423938242,1780501839000,-500.0,0.00017684,2]
[423938227,1780501839000,-500.0,0.00017684,2]
[423938243,1780501839000,-212.96498378,0.00017684,2]
[423938221,1780501839000,-1038.07,0.00017684,2]
[423938308,1780501839000,-500.0,0.0001813,2]
[423938268,1780501839000,-154.09,0.00017856,2]
[423938309,1780501839000,-352.68,0.0001813,2]
[423938342,1780501839000,-167.8,0.00019452,2]
[423938339,1780501839000,-1038.07,0.00019328,2]
[423938343,1780501839000,-500.0,0.00019502,2]
[423938336,1780501839000,-425.285956,0.00019106,2]
[423938341,1780501839000,-553.18159296,0.00019379,2]
[423938340,1780501839000,-1644.40886242,0.00019344,7]
[423938356,1780501839000,-1715.122243,0.00019644,2]
[423938358,1780501839000,-1929.626427,0.00019644,2]
[423938350,1780501839000,-172.269453,0.00019644,2]
[423938354,1780501839000,-1929.626427,0.00019644,2]
[423938349,1780501839000,-1715.122243,0.00019644,2]
[423938344,1780501839000,-300.0,0.00019589,3]
[423938351,1780501839000,-1715.122243,0.00019644,2]
[423938337,1780501839000,-167.8,0.00019178,2]
[423938353,1780501839000,-1715.122243,0.00019644,2]
[423938347,1780501839000,-172.269453,0.00019644,2]
[423938346,1780501839000,-1038.07,0.00019602,2]
[423938345,1780501839000,-795.0,0.000196,2]
[423938348,1780501839000,-172.269453,0.00019644,2]
[423938359,1780501839000,-193.650303,0.00019644,2]
[423938368,1780501839000,-1929.626427,0.00019644,2]
[423938360,1780501839000,-151.0,0.00019644,2]
[423938364,1780501839000,-193.650303,0.00019644,2]
[423938371,1780501839000,-187.062001,0.00019644,2]
[423938369,1780501839000,-193.650303,0.00019644,2]
[423938365,1780501839000,-151.0,0.00019644,2]
[423938361,1780501839000,-1929.626427,0.00019644,2]
[423938362,1780501839000,-169.51419,0.00019644,2]
[423938352,1780501839000,-172.269453,0.00019644,2]
[423938334,1780501839000,-259.0,0.00019,2]
[423938299,1780501839000,-500.0,0.00017958,2]
[423938338,1780501839000,-500.0,0.00019228,2]
[423938303,1780501839000,-500.0,0.00017958,2]
[423938306,1780501839000,-500.0,0.0001805,2]
[423938307,1780501839000,-163.65,0.0001813,2]
[423938304,1780501839000,-446.66,0.00017958,2]
[423938305,1780501839000,-456.78,0.00017958,2]
[423938311,1780501839000,-500.0,0.00018132,2]
[423938310,1780501839000,-500.0,0.00018132,2]
[423938313,1780501839000,-160.0,0.00018219,2]
[423938333,1780501839000,-297.0,0.00018986,3]
[423938314,1780501839000,-500.0,0.00018231,2]
[423938315,1780501839000,-500.0,0.00018231,2]
[423938316,1780501839000,-1038.07,0.00018232,2]
[423938320,1780501839000,-600.0,0.00018235,2]
[423938319,1780501839000,-293.86,0.00018232,2]
[423938312,1780501839000,-500.0,0.00018132,2]
[423938318,1780501839000,-500.0,0.00018232,2]
[423938317,1780501839000,-532.04,0.00018232,2]
[423938332,1780501839000,-500.0,0.00018954,2]
[423938328,1780501839000,-1414.0,0.00018673,2]
[423938329,1780501839000,-185.0,0.00018673,2]
[423938326,1780501839000,-1038.07,0.00018506,2]
[423938327,1780501839000,-166.4156,0.00018587,2]
[423938335,1780501839000,-1038.07,0.00019054,2]
[423938331,1780501839000,-1038.07,0.0001878,2]
[423938322,1780501839000,-425.285956,0.00018334,2]
[423938324,1780501839000,-500.0,0.00018406,2]
[423938325,1780501839000,-521.85786298,0.00018505,2]
[423938323,1780501839000,-220.90938433,0.000184,60]
[423938321,1780501839000,-152.0,0.00018258,2]
[423938330,1780501839000,-500.0,0.0001868,2]
[423938424,1780501840000,-1004.978393,0.00019644,2]
[423938421,1780501840000,-819.73121,0.00019644,2]
[423938423,1780501840000,-819.73121,0.00019644,2]
[423938419,1780501840000,-819.73121,0.00019644,2]
[423938415,1780501840000,-444.61764,0.00019644,2]
[423938428,1780501840000,-1872.60584477,0.00019644,2]
[423938420,1780501840000,-819.73121,0.00019644,2]
[423938427,1780501840000,-1004.978393,0.00019644,2]
[423938425,1780501840000,-1004.978393,0.00019644,2]
[423938418,1780501840000,-444.61764,0.00019644,2]
[423938426,1780501840000,-1004.978393,0.00019644,2]
[423938422,1780501840000,-151.0,0.00019644,2]
[423938436,1780501840000,-151.0,0.00019702,2]
[423938454,1780501840000,-163.848706,0.00019702,2]
[423938434,1780501840000,-151.0,0.00019702,2]
[423938429,1780501840000,-278.477215,0.00019702,2]
[423938439,1780501840000,-151.0,0.00019702,2]
[423938435,1780501840000,-278.477215,0.00019702,2]
[423938437,1780501840000,-151.0,0.00019702,2]
[423938431,1780501840000,-151.0,0.00019702,2]
[423938433,1780501840000,-151.0,0.00019702,2]
[423938440,1780501840000,-151.0,0.00019702,2]
[423938430,1780501840000,-151.0,0.00019702,2]
[423938441,1780501840000,-151.0,0.00019702,2]
[423938438,1780501840000,-278.477215,0.00019702,2]
[423938443,1780501840000,-151.0,0.00019702,2]
[423938453,1780501840000,-151.0,0.00019702,2]
[423938416,1780501840000,-444.61764,0.00019644,2]
[423938432,1780501840000,-278.477215,0.00019702,2]
[423938417,1780501840000,-444.61764,0.00019644,2]
[423938390,1780501840000,-151.0,0.00019644,2]
[423938403,1780501840000,-151.0,0.00019644,2]
[423938442,1780501840000,-335.257494,0.00019702,2]
[423938373,1780501840000,-151.0,0.00019644,2]
[423938378,1780501840000,-187.062001,0.00019644,2]
[423938376,1780501840000,-193.650303,0.00019644,2]
[423938380,1780501840000,-204.214127,0.00019644,2]
[423938382,1780501840000,-187.062001,0.00019644,2]
[423938392,1780501840000,-251.92664,0.00019644,2]
[423938397,1780501840000,-251.92664,0.00019644,2]
[423938400,1780501840000,-151.0,0.00019644,2]
[423938388,1780501840000,-251.92664,0.00019644,2]
[423938399,1780501840000,-151.0,0.00019644,2]
[423938401,1780501840000,-151.0,0.00019644,2]
[423938384,1780501840000,-187.062001,0.00019644,2]
[423938386,1780501840000,-151.0,0.00019644,2]
[423938393,1780501840000,-151.0,0.00019644,2]
[423938396,1780501840000,-151.0,0.00019644,2]
[423938398,1780501840000,-151.0,0.00019644,2]
[423938395,1780501840000,-251.92664,0.00019644,2]
[423938405,1780501840000,-549.181709,0.00019644,2]
[423938414,1780501840000,-151.0,0.00019644,2]
[423938406,1780501840000,-151.0,0.00019644,2]
[423938404,1780501840000,-549.181709,0.00019644,2]
[423938407,1780501840000,-549.181709,0.00019644,2]
[423938402,1780501840000,-549.181709,0.00019644,2]
[423938412,1780501840000,-200.0,0.00019644,2]
[423938413,1780501840000,-151.0,0.00019644,2]
[423938411,1780501840000,-200.0,0.00019644,2]
[423938409,1780501840000,-200.0,0.00019644,2]
[423938410,1780501840000,-200.0,0.00019644,2]
[423938408,1780501840000,-151.0,0.00019644,2]
[423938448,1780501840000,-311.253234,0.00019702,2]
[423938444,1780501840000,-335.257494,0.00019702,2]
[423938551,1780501840000,-281.717511,0.00019702,2]
[423938506,1780501840000,-205.628962,0.00019702,2]
[423938508,1780501840000,-452.196042,0.00019702,2]
[423938504,1780501840000,-205.628962,0.00019702,2]
[423938518,1780501840000,-452.196042,0.00019702,2]
[423938502,1780501840000,-452.196042,0.00019702,2]
[423938510,1780501840000,-452.196042,0.00019702,2]
[423938520,1780501840000,-205.628962,0.00019702,2]
[423938525,1780501840000,-1310.662441,0.00019702,2]
[423938523,1780501840000,-1310.662441,0.00019702,2]
[423938522,1780501840000,-205.628962,0.00019702,2]
[423938527,1780501840000,-1310.662441,0.00019702,2]
[423938529,1780501840000,-1310.662441,0.00019702,2]
[423938538,1780501840000,-281.717511,0.00019702,2]
[423938531,1780501840000,-1310.662441,0.00019702,2]
[423938540,1780501840000,-281.717511,0.00019702,2]
[423938535,1780501840000,-1310.662441,0.00019702,2]
[423938533,1780501840000,-1310.662441,0.00019702,2]
[423938542,1780501840000,-281.717511,0.00019702,2]
[423938550,1780501840000,-727.761005,0.00019702,2]
[423938548,1780501840000,-281.717511,0.00019702,2]
[423938544,1780501840000,-281.717511,0.00019702,2]
[423938546,1780501840000,-727.761005,0.00019702,2]
[423938559,1780501840000,-281.717511,0.00019702,2]
[423938555,1780501840000,-677.720593,0.00019702,2]
[423938557,1780501840000,-727.761005,0.00019702,2]
[423938562,1780501840000,-727.761005,0.00019702,2]
[423938553,1780501840000,-677.720593,0.00019702,2]
[423938560,1780501840000,-281.717511,0.00019702,2]
[423938446,1780501840000,-335.257494,0.00019702,2]
[423938500,1780501840000,-452.196042,0.00019702,2]
[423938516,1780501840000,-452.196042,0.00019702,2]
[423938537,1780501840000,-1310.662441,0.00019702,2]
[423938512,1780501840000,-205.628962,0.00019702,2]
[423938514,1780501840000,-205.628962,0.00019702,2]
[423938449,1780501840000,-311.253234,0.00019702,2]
[423938450,1780501840000,-311.253234,0.00019702,2]
[423938445,1780501840000,-151.0,0.00019702,2]
[423938451,1780501840000,-311.253234,0.00019702,2]
[423938452,1780501840000,-151.0,0.00019702,2]
[423938455,1780501840000,-163.848706,0.00019702,2]
[423938457,1780501840000,-163.848706,0.00019702,2]
[423938459,1780501840000,-163.848706,0.00019702,2]
[423938460,1780501840000,-407.956275,0.00019702,2]
[423938462,1780501840000,-407.956275,0.00019702,2]
[423938467,1780501840000,-236.376,0.00019702,2]
[423938464,1780501840000,-236.376,0.00019702,2]
[423938475,1780501840000,-236.376,0.00019702,2]
[423938469,1780501840000,-407.956275,0.00019702,2]
[423938447,1780501840000,-335.257494,0.00019702,2]
[423938493,1780501840000,-452.196042,0.00019702,2]
[423938466,1780501840000,-407.956275,0.00019702,2]
[423938478,1780501840000,-540.148223,0.00019702,2]
[423938482,1780501840000,-540.148223,0.00019702,2]
[423938480,1780501840000,-540.148223,0.00019702,2]
[423938488,1780501840000,-540.148223,0.00019702,2]
[423938484,1780501840000,-540.148223,0.00019702,2]
[423938486,1780501840000,-540.148223,0.00019702,2]
[423938489,1780501840000,-540.148223,0.00019702,2]
[423938470,1780501840000,-236.376,0.00019702,2]
[423938491,1780501840000,-540.148223,0.00019702,2]
[423938495,1780501840000,-452.196042,0.00019702,2]
[423938497,1780501840000,-205.628962,0.00019702,2]
[423938499,1780501840000,-205.628962,0.00019702,2]
[423938648,1780501841000,-2312.823134,0.00019702,2]
[423938650,1780501841000,-2312.823134,0.00019702,2]
[423938638,1780501841000,-2312.823134,0.00019702,2]
[423938654,1780501841000,-151.0,0.00019702,2]
[423938652,1780501841000,-2312.823134,0.00019702,2]
[423938634,1780501841000,-2312.823134,0.00019702,2]
[423938640,1780501841000,-2312.823134,0.00019702,2]
[423938632,1780501841000,-151.0,0.00019702,2]
[423938630,1780501841000,-578.47612,0.00019702,2]
[423938646,1780501841000,-578.47612,0.00019702,2]
[423938644,1780501841000,-578.47612,0.00019702,2]
[423938642,1780501841000,-578.47612,0.00019702,2]
[423938656,1780501841000,-578.47612,0.00019702,2]
[423938636,1780501841000,-271.329331,0.00019702,2]
[423938658,1780501841000,-151.0,0.00019702,2]
[423938674,1780501841000,-151.0,0.00019702,2]
[423938666,1780501841000,-2312.823134,0.00019702,2]
[423938660,1780501841000,-578.47612,0.00019702,2]
[423938672,1780501841000,-151.0,0.00019702,2]
[423938677,1780501841000,-151.0,0.00019702,2]
[423938668,1780501841000,-2312.823134,0.00019702,2]
[423938664,1780501841000,-578.47612,0.00019702,2]
[423938670,1780501841000,-2312.823134,0.00019702,2]
[423938676,1780501841000,-151.0,0.00019702,2]
[423938680,1780501841000,-151.0,0.00019702,2]
[423938681,1780501841000,-151.0,0.00019702,2]
[423938700,1780501841000,-202.755125,0.00019702,2]
[423938687,1780501841000,-186.867709,0.00019702,2]
[423938694,1780501841000,-202.755125,0.00019702,2]
[423938662,1780501841000,-151.0,0.00019702,2]
[423938628,1780501841000,-578.47612,0.00019702,2]
[423938685,1780501841000,-151.0,0.00019702,2]
[423938610,1780501841000,-151.0,0.00019702,2]
[423938568,1780501841000,-727.761005,0.00019702,2]
[423938564,1780501841000,-677.720593,0.00019702,2]
[423938570,1780501841000,-727.761005,0.00019702,2]
[423938566,1780501841000,-677.720593,0.00019702,2]
[423938572,1780501841000,-677.720593,0.00019702,2]
[423938574,1780501841000,-677.720593,0.00019702,2]
[423938576,1780501841000,-727.761005,0.00019702,2]
[423938580,1780501841000,-677.720593,0.00019702,2]
[423938584,1780501841000,-151.0,0.00019702,2]
[423938578,1780501841000,-727.761005,0.00019702,2]
[423938586,1780501841000,-151.0,0.00019702,2]
[423938582,1780501841000,-677.720593,0.00019702,2]
[423938587,1780501841000,-151.0,0.00019702,2]
[423938595,1780501841000,-151.0,0.00019702,2]
[423938589,1780501841000,-184.396903,0.00019702,2]
[423938591,1780501841000,-151.0,0.00019702,2]
[423938593,1780501841000,-151.0,0.00019702,2]
[423938597,1780501841000,-578.47612,0.00019702,2]
[423938602,1780501841000,-151.0,0.00019702,2]
[423938612,1780501841000,-2312.823134,0.00019702,2]
[423938614,1780501841000,-578.47612,0.00019702,2]
[423938616,1780501841000,-151.0,0.00019702,2]
[423938618,1780501841000,-151.0,0.00019702,2]
[423938604,1780501841000,-578.47612,0.00019702,2]
[423938620,1780501841000,-2312.823134,0.00019702,2]
[423938608,1780501841000,-151.0,0.00019702,2]
[423938624,1780501841000,-578.47612,0.00019702,2]
[423938622,1780501841000,-2312.823134,0.00019702,2]
[423938606,1780501841000,-151.0,0.00019702,2]
[423938626,1780501841000,-151.0,0.00019702,2]
[423938696,1780501841000,-202.755125,0.00019702,2]
[423938809,1780501841000,-151.0,0.00019702,2]
[423938684,1780501841000,-151.0,0.00019702,2]
[423938763,1780501841000,-415.9316,0.00019702,2]
[423938771,1780501841000,-415.9316,0.00019702,2]
[423938769,1780501841000,-415.9316,0.00019702,2]
[423938773,1780501841000,-172.269453,0.00019702,2]
[423938765,1780501841000,-415.9316,0.00019702,2]
[423938775,1780501841000,-172.269453,0.00019702,2]
[423938767,1780501841000,-415.9316,0.00019702,2]
[423938777,1780501841000,-172.269453,0.00019702,2]
[423938783,1780501841000,-1715.122243,0.00019702,2]
[423938781,1780501841000,-172.269453,0.00019702,2]
[423938779,1780501841000,-1715.122243,0.00019702,2]
[423938785,1780501841000,-172.269453,0.00019702,2]
[423938787,1780501841000,-172.269453,0.00019702,2]
[423938789,1780501841000,-1715.122243,0.00019702,2]
[423938800,1780501841000,-1929.626427,0.00019702,2]
[423938801,1780501841000,-1929.626427,0.00019702,2]
[423938791,1780501841000,-1715.122243,0.00019702,2]
[423938802,1780501841000,-1715.122243,0.00019702,2]
[423938793,1780501841000,-172.269453,0.00019702,2]
[423938804,1780501841000,-1929.626427,0.00019702,2]
[423938803,1780501841000,-1715.122243,0.00019702,2]
[423938797,1780501841000,-172.269453,0.00019702,2]
[423938795,1780501841000,-1715.122243,0.00019702,2]